Cogmind - Beta 10.2 @@@ ROGUE MODE // 2021.11.25 @ 22:10:31 Player: Xcalibur Result: Destroyed by G-67 Veteran with Plasma Rifle Performance ------------- Evolutions (6) 3000 Regions Visited (24) 4800 Robots Destroyed (99) 495 Value Destroyed (3990) 3990 Prototype IDs (31) 620 Alien Tech Used (0) 0 Bonus (5338) 5338 TOTAL SCORE: 18243 Bonus ------- High Alert Combat Kills 140 Follower Combat Kills 2951 Met Imprinter 300 Was Imprinted 300 Met Zhirov 300 Met Warlord at Base 500 MAIN.C Attacked Warlord 500 Warlord Defense Kill 1046 Friendly Fire -699 Cogmind --------- Core Integrity 0/1150 Matter 300/300 Energy 99/100 System Corruption 0% Temperature Cool (12) Movement Core (50) Location -4/Warlord Parts ------- > --- POWER (3) -------- (None) > --- PROPULSION (5) --- (None) > --- UTILITY (7) ------ (None) > --- WEAPON (4) ------- (None) > --- INVENTORY (4) ---- Antimatter Reactor Nuclear Pulse Thruster Vortex Shotgun Peak State ------------ > --- POWER ------------ Antimatter Reactor Antimatter Reactor Antimatter Reactor > --- PROPULSION ------- Heavy Treads Biometal Heavy Treads Nuclear Pulse Thruster > --- UTILITY ---------- Improved Cooling System Improved Cooling System Advanced Signal Interpreter Advanced Targeting Computer Beam Splitter Improved Remote Force Field Dynamic Insulation System > --- WEAPON ----------- Heavy Beamcaster Enhanced Quantum Rifle Heavy Battle Rifle Heavy Battle Rifle > --- INVENTORY -------- Particle Reactor Heavy Treads Advanced Force Booster [Rating: 117] Favorites ----------- Power Antimatter Reactor Engine Improved Deuterium Engine Power Core Micro Fission Core Reactor Antimatter Reactor Propulsion Improved Treads Treads Improved Treads Leg Carbon-fiber Leg Wheel Armored Wheel Flight Unit Flight Unit Utility Small Storage Unit Device Advanced Heat Sink Storage Small Storage Unit Processor Advanced Targeting Computer Hackware Improved System Shield Protection Improved Medium Armor Plating Weapon KE Penetrator Energy Gun Beamcaster Energy Cannon Long-range Proton Cannon Ballistic Gun KE Penetrator Ballistic Cannon Heavy Flak Cannon Special Weapon Mining Laser Slashing Weapon Chainsword Build | -11 -10 -10 -9 -9 -8 -7 -6 -6 -6 -6 -5 -5 -5 -5 -5 -5 -5 -5 -4 -4 -4 -4 -4 -4 ------- Run | Scr Mat Min Mat Min Mat Fac Fac Low Low Zio Pro Fac Was Fac Ext Cet Arc Hub Fac Was Fac Upp Upp War Slots Evolved 12 | . . . 2 . 2 2 2 . . . . 2 . . . . . . 2 . . . . . Power 2 | . . . . . 1 1 . . . . . . . . . . . . . . . . . . Propulsion 3 | . . . 1 . . 1 1 . . . . . . . . . . . . . . . . . Utility 5 | . . . 1 . 1 . 1 . . . . 1 . . . . . . 1 . . . . . Weapon 2 | . . . . . . . . . . . . 1 . . . . . . 1 . . . . . Parts Attached 325 | 6 19 1 13 30 28 11 8 13 16 16 25 28 . 10 37 14 4 . 3 21 5 4 2 11 Power 48 | 1 1 . 2 2 6 5 2 1 2 2 5 5 . 2 6 . . . 1 4 . . . 1 Engine 25 | 1 1 . 2 2 6 5 1 . 1 . 4 2 . . . . . . . . . . . . Core 16 | . . . . . . . 1 1 1 1 1 3 . 2 5 . . . 1 . . . . . Reactor 7 | . . . . . . . . . . 1 . . . . 1 . . . . 4 . . . 1 Propulsion 86 | 2 6 . 3 5 16 1 4 4 6 2 8 6 . 1 10 3 1 . . 6 . . . 2 Treads 18 | . . . . . . . . . 5 2 5 1 . . 1 . . . . 3 . . . 1 Leg 23 | . . . . 2 6 . . 1 1 . 3 1 . . 5 3 1 . . . . . . . Wheel 6 | 2 4 . . . . . . . . . . . . . . . . . . . . . . . Hover . | . . . . . . . . . . . . . . . . . . . . . . . . . Flight 39 | . 2 . 3 3 10 1 4 3 . . . 4 . 1 4 . . . . 3 . . . 1 Utility 103 | 1 7 1 4 7 3 3 2 2 6 8 6 10 . 4 15 5 1 . 1 7 4 3 1 2 Device 61 | . 4 . 2 5 1 2 1 2 5 2 3 7 . 1 9 3 1 . . 6 4 1 . 2 Storage 8 | 1 3 1 1 1 . . . . . . . 1 . . . . . . . . . . . . Processor 11 | . . . . . . . . . . 2 . 1 . 3 3 1 . . 1 . . . . . Hackware 3 | . . . . . . . 1 . . 1 . . . . . . . . . . . 1 . . Protection 20 | . . . 1 1 2 1 . . 1 3 3 1 . . 3 1 . . . 1 . 1 1 . Artifact . | . . . . . . . . . . . . . . . . . . . . . . . . . Weapon 88 | 2 5 . 4 16 3 2 . 6 2 4 6 7 . 3 6 6 2 . 1 4 1 1 1 6 Energy Gun 28 | 1 1 . . 2 1 2 . 2 1 2 2 1 . . 2 3 2 . . 2 1 . . 3 Energy Cannon 2 | . . . . . . . . . . . . . . 2 . . . . . . . . . . Ballistic Gun 42 | 1 4 . 3 9 2 . . 2 1 1 2 6 . . 2 2 . . . 2 . 1 1 3 Ballistic Cannon 1 | . . . . . . . . . . . 1 . . . . . . . . . . . . . Launcher . | . . . . . . . . . . . . . . . . . . . . . . . . . Special Weapon 7 | . . . 1 5 . . . 1 . . . . . . . . . . . . . . . . Impact Weapon . | . . . . . . . . . . . . . . . . . . . . . . . . . Slashing Weapon 8 | . . . . . . . . 1 . 1 1 . . 1 2 1 . . 1 . . . . . Piercing Weapon . | . . . . . . . . . . . . . . . . . . . . . . . . . Special Melee Weapon . | . . . . . . . . . . . . . . . . . . . . . . . . . Unidentified Prototypes 13 | . . . 2 . . . . . . 4 . . . . 3 2 . . . 1 . . . 1 Parts Lost 100 | . 2 . . 8 1 . 1 14 6 . 14 4 3 3 16 . 7 3 9 . . 1 . 8 Power 18 | . . . . 1 1 . . 3 1 . 2 3 . . 2 . 1 . 2 . . . . 2 Propulsion 30 | . . . . 3 . . . 6 2 . 6 . . 1 6 . 1 . 3 . . . . 2 Utility 23 | . . . . 1 . . 1 2 1 . 2 . 2 . 6 . 3 1 2 . . 1 . 1 Weapon 29 | . 2 . . 3 . . . 3 2 . 4 1 1 2 2 . 2 2 2 . . . . 3 Highest Loss Streak 16 | . 2 . . 3 1 . 1 13 3 . 7 1 3 3 16 . 7 3 6 . . 1 . 3 Average Slot Usage (%) 88 | . 98 100 97 91 95 99 98 64 75 98 94 89 84 82 77 100 88 76 29 71 88 88 84 81 Engine 5 | . 14 14 11 10 15 23 16 1 2 6 7 8 5 . . . . . . . . . . . Core 5 | . . . . . . . 3 6 9 12 6 6 11 16 10 11 11 11 4 . . . . . Reactor 3 | . . . . . . . . . . . 3 . . . 2 5 3 . . 14 15 15 15 14 Treads 10 | . . . . . . . . . 11 32 19 6 . . 2 . . . . 8 10 10 10 9 Leg 4 | . . . . 4 13 . . 4 4 . 9 4 . . 13 29 27 23 13 . . . . . Flight 6 | . 1 . 33 21 11 30 33 4 . . . 10 17 15 1 . . . . 5 5 5 5 4 Device 15 | . 13 9 8 10 17 14 17 18 16 12 16 20 21 11 8 11 9 11 1 22 25 25 21 20 Storage 4 | . 14 18 11 11 9 7 6 6 6 6 3 1 . . . . . . . . . . . . Processor 2 | . . . . . . . . . . . . 2 5 16 10 11 9 5 5 8 5 5 5 4 Hackware 2 | . . . . . . . . 6 6 6 6 5 5 5 . . . . . . . . . . Protection 5 | . . . 10 11 9 6 6 1 2 5 5 1 . . 8 11 9 5 . 1 5 5 5 4 Energy Gun 4 | . 10 . . . 3 7 6 2 7 3 2 1 . . 6 5 4 11 2 6 10 10 10 4 Ballistic Gun 9 | . 17 28 22 18 14 7 6 9 4 5 5 13 14 5 4 10 9 5 . 3 10 10 10 14 Naked Turns 14 | . . . . . . . . . . . . . . . . . . . . . . . . 14 Heaviest Build 114 | 13 27 17 16 15 27 27 33 32 39 50 71 114 43 42 69 79 78 51 34 95 95 93 109 109 Greatest Support 145 | 26 26 24 12 29 54 27 35 36 114 116 119 75 49 49 89 89 89 74 74 145 140 140 140 140 Greatest Overweight (x) 2 | . 1 . 1 . 1 . . 1 2 2 2 1 . . 2 . . . . 1 . . . . Average Overweight (x) . | . . . . . . . . . 1 . . . . . . . . . . . . . . . Largest Inventory Capacity 12 | 6 10 10 10 6 6 6 6 6 6 6 6 12 4 4 4 4 4 4 4 4 4 4 4 4 Average Capacity 5 | 5 6 8 6 6 6 6 6 6 6 6 5 6 4 4 4 4 4 4 4 4 4 4 4 4 Most Carried 12 | 6 8 9 8 6 6 6 6 6 6 6 6 12 4 4 4 4 4 1 3 4 4 4 4 4 Average Carried 4 | 3 5 8 4 5 5 5 5 3 5 5 4 5 4 3 3 3 3 1 . 3 4 4 3 3 Final Capacity 10 | 6 8 10 6 6 6 6 6 6 6 6 4 4 4 4 4 4 4 4 4 4 4 4 4 4 Final Carried 9 | 6 8 9 6 6 6 6 6 6 6 6 4 4 4 4 4 4 1 1 1 4 4 4 4 3 Class Distribution -------------------- 60% | Scavenger-Mutant 17% | Scavenger-Tank 5% | Scavenger-Sprinter 5% | Scavenger-Gunner 4% | Mutant Dominant Class ---------------- Mutant | -10/Materials Scavenger-Mutant | -10/Mines Scavenger-Mutant | -9/Materials Scavenger-Mutant | -9/Mines Scavenger-Mutant | -8/Materials Scavenger-Sprinter | -7/Factory Scavenger-Sprinter | -6/Factory Scavenger-Mutant | -6/Lower Caves Scavenger-Mutant | -6/Lower Caves Scavenger-Mutant | -6/Zion Scavenger-Mutant | -5/Proximity Caves Generator-Gunner | -5/Factory Generator-Tank | -5/Waste Generator-Mutant | -5/Factory Scavenger-Gunner | -5/Extension Scavenger-Gunner | -5/Cetus Scavenger-Gunner | -5/Archives Scavenger-Gunner | -5/Hub_04(d) Scavenger-Mutant | -4/Factory Scavenger-Mutant | -4/Waste Scavenger-Tank | -4/Factory Scavenger-Tank | -4/Upper Caves Scavenger-Mutant | -4/Upper Caves Scavenger-Tank | -4/Warlord Resources | -11 -10 -10 -9 -9 -8 -7 -6 -6 -6 -6 -5 -5 -5 -5 -5 -5 -5 -5 -4 -4 -4 -4 -4 -4 ----------- Run | Scr Mat Min Mat Min Mat Fac Fac Low Low Zio Pro Fac Was Fac Ext Cet Arc Hub Fac Was Fac Upp Upp War Matter Collected 4982 | 212 181 103 51 423 259 129 304 203 299 191 420 576 . 129 497 250 . . . 235 . 115 81 324 Remotely . | . . . . . . . . . . . . . . . . . . . . . . . . . Salvage Created 5080 | . 209 . 51 387 276 121 123 267 793 . 523 637 . 189 284 324 80 . 105 . . 169 67 475 Parts 212 | . 13 . 3 12 24 12 8 8 23 . 23 30 . 11 16 11 1 . 3 . . 1 2 11 Haulers Intercepted 1 | . . . 1 . . . . . . . . . . . . . . . . . . . . . Recyclers Shooed 4 | . . . . 2 . . . . . . . 1 . . 1 . . . . . . . . . Parts Field Recycled . | . . . . . . . . . . . . . . . . . . . . . . . . . Retrieved Matter . | . . . . . . . . . . . . . . . . . . . . . . . . . Parts Self-Destructed 168 | . . . . . . . . 7 16 . 27 . . . . . . . . . . 10 25 83 Prevented 52 | . . . . . . . . 2 4 6 13 . . . . . . . . . . 3 8 16 Kills | -11 -10 -10 -9 -9 -8 -7 -6 -6 -6 -6 -5 -5 -5 -5 -5 -5 -5 -5 -4 -4 -4 -4 -4 -4 ------- Run | Scr Mat Min Mat Min Mat Fac Fac Low Low Zio Pro Fac Was Fac Ext Cet Arc Hub Fac Was Fac Upp Upp War Combat Hostiles Destroyed 82 | . 6 . . 11 6 . 1 5 8 . 10 10 . 6 5 5 1 . . . . 2 . 6 Melee 7 | . 1 . . . . . . . . . 1 . . 2 3 . . . . . . . . . Guns 68 | . 5 . . 10 6 . 1 5 7 . 9 8 . 2 2 5 1 . . . . 2 . 5 Cannons 5 | . . . . 1 . . . . . . . 2 . 2 . . . . . . . . . . Classes Destroyed 14 | . 3 . 1 2 3 1 . . 2 . . . . . . . . . . . . . . 2 Worker 4 | . . . . . 1 2 1 . . . . . . . . . . . . . . . . . Hauler 1 | . . . 1 . . . . . . . . . . . . . . . . . . . . . Recycler 3 | . . . . 1 1 . . . . . . . . . 1 . . . . . . . . . Operator 2 | . . . . . . 1 1 . . . . . . . . . . . . . . . . . Watcher 6 | . 1 . . . 1 1 . . . . . 2 . . 1 . . . . . . . . . Swarmer 28 | . 3 . . 4 4 . . 2 . . 3 3 . 5 4 . . . . . . . . . Grunt 40 | . 3 . . 5 . . 1 3 5 . 7 6 . . 1 3 1 . . . . 2 . 3 Sentry 4 | . . . . . 1 . . . 1 . . 2 . . . . . . . . . . . . Specialist 1 | . . . . . . . . . . . . . . . . . . . . . . . . 1 Hunter 3 | . . . . . 1 . . . . . . 1 . 1 . . . . . . . . . . Programmer 1 | . . . . . . . . . 1 . . . . . . . . . . . . . . . Cetus Guard 2 | . . . . . . . . . . . . . . . . 2 . . . . . . . . Executioner 2 | . . . . . . . . . . . . . . . . . . . . . . . . 2 Z-Courier 1 | . . . . . . . . . . . . . . . . . . . 1 . . . . . Decomposer 2 | . . . . . . . . 1 1 . . . . . . . . . . . . . . . Assembled 2 | . . . . 2 . . . . . . . . . . . . . . . . . . . . Thug 1 | . . . . . . . . . . . . . . . . . . . . . . . 1 . Mutant 1 | . . . . . . . . . 1 . . . . . . . . . . . . . . . Best Kill Streak 7 | . 6 . 1 5 7 1 1 3 3 . 2 5 . 5 4 2 1 . . . . 2 . 5 Combat Bots Only 5 | . 5 . . 4 5 . 1 3 3 . 2 5 . 5 4 2 1 . . . . 2 . 5 Max Kills in Single Turn 2 | . 1 . 1 1 2 1 1 1 1 . 1 2 . 1 1 1 1 . 1 . . 2 1 1 Gunslinging 1 | . . . . . . . . . . . . . . . . . . . . . . 1 . . Exploded . | . . . . . . . . . . . . . . . . . . . . . . . . . Melee 1 | . 1 . . . . . . . . . 1 . . 1 1 . . . . . . . . . Uniques/NPCs Destroyed . | . . . . . . . . . . . . . . . . . . . . . . . . . Combat | -11 -10 -10 -9 -9 -8 -7 -6 -6 -6 -6 -5 -5 -5 -5 -5 -5 -5 -5 -4 -4 -4 -4 -4 -4 -------- Run | Scr Mat Min Mat Min Mat Fac Fac Low Low Zio Pro Fac Was Fac Ext Cet Arc Hub Fac Was Fac Upp Upp War Damage Taken 15275 | . 550 30 27 696 412 31 165 1139 947 . 1494 1082 87 479 1757 326 1559 249 1447 . . 212 107 2479 Core 2939 | . 109 . . 135 45 . 45 280 161 . 136 133 . 44 531 . 148 20 619 . . . . 533 Absorbed by Shields 1524 | . . . . . . . . . 76 . 65 603 30 89 45 . . . . . . 108 61 447 Reduced by Siege Mode 127 | . . . . . . . . . . . . . . . . . . . . . . . . 127 Core Remaining (%) 64 | 100 . 56 . 66 91 100 . . . . 26 . . . . . . 12 . . . . . . Volleys Fired 425 | . 23 . 7 68 37 11 12 32 56 . 46 40 . 13 16 17 6 1 1 4 . 5 7 23 Largest 4 | . 2 . 2 2 2 2 2 2 2 . 2 3 . 2 3 3 3 1 1 1 . 4 4 4 Hottest 258 | . 85 . 100 103 78 83 83 108 135 . 258 142 . 102 194 194 133 60 60 94 . 212 212 174 Shots Fired 814 | . 43 . 13 101 74 17 21 59 82 . 72 111 . 18 35 48 18 1 1 4 . 17 16 63 Gun 769 | . 43 . 12 79 74 17 21 56 82 . 71 98 . 13 35 48 18 1 1 4 . 17 16 63 Cannon 19 | . . . . . . . . . . . 1 13 . 5 . . . . . . . . . . Launcher . | . . . . . . . . . . . . . . . . . . . . . . . . . Special 26 | . . . 1 22 . . . 3 . . . . . . . . . . . . . . . . Kinetic 538 | . 20 . 12 75 70 6 9 35 17 . 45 101 . 13 13 29 12 . . . . 10 14 57 Thermal 209 | . 23 . 1 26 4 . . 9 56 . 27 10 . . 22 19 . . . 4 . 5 1 2 Explosive . | . . . . . . . . . . . . . . . . . . . . . . . . . Electromagnetic 66 | . . . . . . 11 12 15 9 . . . . 5 . . 6 1 1 . . 2 1 3 Entropic 1 | . . . . . . . . . . . . . . . . . . . . . . . . 1 Robot Hit Streak 25 | . 6 . 7 23 8 5 4 12 8 . 10 14 . 13 7 9 9 . 1 5 . 14 21 25 Robot Miss Streak 5 | . 5 . 2 3 3 3 2 2 2 . 4 5 . 1 2 4 1 1 . . . 1 1 2 Penetration Max 2 | . . . . . . . 1 . 1 . 1 1 . 1 . 1 . . . . . . . 2 Secondary Targets 9 | . . . . 2 . . . 1 . . 1 . . . . 2 . . . . . 1 . 2 Max Gunslinging Chain 1 | . . . . 1 . . . 1 . . 1 . . . . 1 . . . . . 1 . 1 Shots Hit Robots 564 | . 25 . 7 59 45 9 15 41 56 . 48 72 . 21 34 35 12 . 3 4 . 14 9 55 Core Hits 248 | . 14 . 3 26 20 6 10 12 25 . 25 40 . 8 19 14 3 . 2 . . 5 3 13 Critical Hits 18 | . . . . . 1 . . . 1 . 2 2 . 2 2 1 . . . . . . . 7 Critical Kills 10 | . . . . . 1 . . . 1 . 2 . . 1 1 . . . . . . . . 4 Critical Parts Destroyed 7 | . . . . . . . . . . . . 2 . 1 . 1 . . . . . . . 3 Melee Attacks 42 | . . . . . . . . 1 . 9 2 . . 7 16 4 . . 3 . . . . . Impact . | . . . . . . . . . . . . . . . . . . . . . . . . . Slashing 42 | . . . . . . . . 1 . 9 2 . . 7 16 4 . . 3 . . . . . Piercing . | . . . . . . . . . . . . . . . . . . . . . . . . . Sneak Attacks . | . . . . . . . . . . . . . . . . . . . . . . . . . Combat Hostiles . | . . . . . . . . . . . . . . . . . . . . . . . . . Follow-up Attacks . | . . . . . . . . . . . . . . . . . . . . . . . . . Damage Inflicted 12409 | . 352 . 44 579 510 218 331 838 1245 . 1434 1932 . 625 983 736 250 9 103 122 . 322 331 1445 Guns 10983 | . 333 . 44 511 510 218 298 805 1245 . 1360 1441 . 295 695 736 250 . 22 122 . 322 331 1445 Cannons 392 | . . . . . . . . . . . . 268 . 124 . . . . . . . . . . Explosions 256 | . . . . . . . 33 . . . . 223 . . . . . . . . . . . . Melee 649 | . . . . . . . . . . . 74 . . 206 288 . . . 81 . . . . . Ramming 28 | . 19 . . . . . . . . . . . . . . . . 9 . . . . . . Kinetic 7569 | . 154 . 44 462 461 88 178 591 300 . 849 1542 . 295 277 413 142 . . . . 158 293 1322 Thermal 3289 | . 179 . . 117 49 . 33 138 825 . 511 390 . . 418 323 . . . 122 . 114 23 47 Explosive . | . . . . . . . . . . . . . . . . . . . . . . . . . Electromagnetic 844 | . . . . . . 130 120 109 120 . . . . 124 . . 108 . 22 . . 50 15 46 Impact . | . . . . . . . . . . . . . . . . . . . . . . . . . Slashing 649 | . . . . . . . . . . . 74 . . 206 288 . . . 81 . . . . . Piercing . | . . . . . . . . . . . . . . . . . . . . . . . . . Entropic 30 | . . . . . . . . . . . . . . . . . . . . . . . . 30 Highest Corruption 7 | . . . 2 6 . 1 . 3 4 7 7 1 1 1 1 1 1 1 . . . . . 2 Average Corruption 3 | . . . 2 4 . 1 . 2 3 6 7 1 1 1 1 1 1 1 . . . . . 1 Corruption Purged . | . . . . . . . . . . . . . . . . . . . . . . . . . Effects 123 | . . . . 24 . 2 . 1 19 31 36 . 1 2 1 4 . 1 . . . . . 1 Message Errors 38 | . . . . 6 . 1 . 1 4 12 12 . . . 1 1 . . . . . . . . Matter Fused 22 | . . . . 3 . . . . 8 8 3 . . . . . . . . . . . . . Heat Flow Errors 12 | . . . . 7 . . . . 3 1 1 . . . . . . . . . . . . . Energy Discharges 18 | . . . . 3 . 1 . . 1 4 6 . . 2 . 1 . . . . . . . . Data Loss (minor) 14 | . . . . 1 . . . . 2 5 2 . 1 . . 1 . 1 . . . . . 1 Data Loss (major) 3 | . . . . . . . . . . 1 2 . . . . . . . . . . . . . Misfires 4 | . . . . 1 . . . . . . 3 . . . . . . . . . . . . . Targeting Errors 9 | . . . . 2 . . . . 1 . 5 . . . . 1 . . . . . . . . Weapon Failures 3 | . . . . 1 . . . . . . 2 . . . . . . . . . . . . . Overload Shots 2 | . . . . . . . . . . . 2 . . . . . . . . . . . . . Overflow Damage 57 | . . . . . . . . . . . . 26 . 18 13 . . . . . . . . . Projectiles . | . . . . . . . . . . . . . . . . . . . . . . . . . Explosions 26 | . . . . . . . . . . . . 26 . . . . . . . . . . . . Melee 31 | . . . . . . . . . . . . . . 18 13 . . . . . . . . . Knockbacks 6 | . . . . . . . . . . . . 6 . . . . . . . . . . . . Impact . | . . . . . . . . . . . . . . . . . . . . . . . . . Kinetic 6 | . . . . . . . . . . . . 6 . . . . . . . . . . . . Secondary . | . . . . . . . . . . . . . . . . . . . . . . . . . Self-Inflicted Damage 102 | . 8 . . . . . . . . . . 94 . . . . . . . . . . . . Shots 1 | . . . . . . . . . . . . 1 . . . . . . . . . . . . Rammed 5 | . 5 . . . . . . . . . . . . . . . . . . . . . . . Targets Rammed 7 | . 5 . . . . . . . . . . . . . . . . 2 . . . . . . Kicked 2 | . . . . . . . . . . . . . . . . . . 2 . . . . . . Crushed . | . . . . . . . . . . . . . . . . . . . . . . . . . Highest Temperature 376 | . 313 . 20 274 54 216 . 94 198 95 324 338 . 376 136 361 . . 5 . . 12 238 190 Average Temperature 79 | . 117 . 8 59 10 60 . 41 48 50 108 92 . 154 44 124 . . 4 . . 3 129 99 Received Heat Transfer 2693 | . 168 9 9 150 45 12 45 363 262 . 375 268 . 12 96 45 18 117 138 . . 30 17 514 Effects 10 | . 4 . . . . . . . . . . . . 3 . 3 . . . . . . . . Shutdowns 1 | . . . . . . . . . . . . . . 1 . . . . . . . . . . Energy Bleed 1 | . 1 . . . . . . . . . . . . . . . . . . . . . . . Interference 7 | . 3 . . . . . . . . . . . . 1 . 3 . . . . . . . . Damage (minor) 1 | . . . . . . . . . . . . . . 1 . . . . . . . . . . Siege Activations 2 | . . . . . . . . . . . . . . . . . . . . . . . . 2 Total Turns 52 | . . . . . . . . . . . . . . . . . . . . . . . . 52 Longest Duration 39 | . . . . . . . . . . . . . . . . . . . . . . . . 39 Robots Corrupted 1 | . . . . . . . . . 1 . . . . . . . . . . . . . . . Combat Hostiles 1 | . . . . . . . . . 1 . . . . . . . . . . . . . . . Parts Fried 1 | . . . . . . . . . 1 . . . . . . . . . . . . . . . Impact Corruptions . | . . . . . . . . . . . . . . . . . . . . . . . . . Robots Melted . | . . . . . . . . . . . . . . . . . . . . . . . . . Combat Hostiles . | . . . . . . . . . . . . . . . . . . . . . . . . . Parts Melted 9 | . 1 . . . . . . . 1 . . . . . 2 . . . 1 . . . . 4 Heat Transferred 5800 | . 481 . . 518 148 . . 388 1406 . 790 359 . . 758 508 . . . 148 . 185 37 74 Parts Sabotaged . | . . . . . . . . . . . . . . . . . . . . . . . . . Parts Stolen . | . . . . . . . . . . . . . . . . . . . . . . . . . Parts Stripped . | . . . . . . . . . . . . . . . . . . . . . . . . . Power Chain Reactions 1 | . . . . . . . 1 . . . . . . . . . . . . . . . . . Missiles Intercepted . | . . . . . . . . . . . . . . . . . . . . . . . . . Alert | -11 -10 -10 -9 -9 -8 -7 -6 -6 -6 -6 -5 -5 -5 -5 -5 -5 -5 -5 -4 -4 -4 -4 -4 -4 ------- Run | Scr Mat Min Mat Min Mat Fac Fac Low Low Zio Pro Fac Was Fac Ext Cet Arc Hub Fac Was Fac Upp Upp War Peak Influence 710 | . 242 109 94 241 186 85 131 . . . . 710 263 468 436 635 344 105 51 22 40 . . . Initial 243 | . . 94 42 36 . 16 17 . . . . 143 243 170 228 243 216 90 36 7 . . . . Average 189 | . 139 101 71 99 82 48 62 . . . . 511 244 266 266 461 266 95 17 14 . . . . Maximum Alert Level 3 | . 1 . . 1 . . . . . . . 3 1 2 2 2 1 . . . . . . . Low Security (%) 63 | 100 56 100 100 93 100 100 100 . . . . 9 . 51 16 . . 100 100 100 100 . . . Level 1 19 | . 43 . . 6 . . . . . . . 6 100 29 76 37 100 . . . . . . . Level 2 16 | . . . . . . . . . . . . 82 . 19 7 62 . . . . . . . . Level 3 . | . . . . . . . . . . . . . . . . . . . . . . . . . Level 4 . | . . . . . . . . . . . . . . . . . . . . . . . . . Level 5 . | . . . . . . . . . . . . . . . . . . . . . . . . . High Security . | . . . . . . . . . . . . . . . . . . . . . . . . . Max Security . | . . . . . . . . . . . . . . . . . . . . . . . . . Squads Dispatched 21 | . 2 . . . 3 2 4 . . . 1 3 . 2 2 . . 1 1 . . . . . Investigation 8 | . 1 . . . 2 2 . . . . . 1 . 1 . . . 1 . . . . . . Extermination . | . . . . . . . . . . . . . . . . . . . . . . . . . Reinforcement 10 | . 1 . . . 1 . 2 . . . . 2 . 1 2 . . . 1 . . . . . Assault 1 | . . . . . . . . . . . 1 . . . . . . . . . . . . . Garrison 2 | . . . . . . . 2 . . . . . . . . . . . . . . . . . Intercept . | . . . . . . . . . . . . . . . . . . . . . . . . . Construction Impeded 1 | . . . . . . . . . . . . . . . 1 . . . . . . . . . Haulers Reinforced 1 | . . . . . . . . . . . . 1 . . . . . . . . . . . . Stealth | -11 -10 -10 -9 -9 -8 -7 -6 -6 -6 -6 -5 -5 -5 -5 -5 -5 -5 -5 -4 -4 -4 -4 -4 -4 --------- Run | Scr Mat Min Mat Min Mat Fac Fac Low Low Zio Pro Fac Was Fac Ext Cet Arc Hub Fac Was Fac Upp Upp War Distress Signals 13 | . 1 . 1 . 1 . . . . . . 3 . 1 2 2 . . 2 . . . . . Communications Jammed . | . . . . . . . . . . . . . . . . . . . . . . . . . Distress Signals . | . . . . . . . . . . . . . . . . . . . . . . . . . Times Spotted 340 | . 10 3 3 22 16 3 6 9 10 . 36 45 5 18 27 18 24 5 9 2 1 11 17 40 Peak Tracking Total 31 | . 5 2 3 7 7 2 2 4 5 . 7 11 5 10 9 5 16 4 8 1 1 4 7 31 Tactical Retreats 33 | . 2 . . 4 . . 1 1 1 . 6 10 . 3 1 . . . 1 . . . . 3 Traps | -11 -10 -10 -9 -9 -8 -7 -6 -6 -6 -6 -5 -5 -5 -5 -5 -5 -5 -5 -4 -4 -4 -4 -4 -4 ------- Run | Scr Mat Min Mat Min Mat Fac Fac Low Low Zio Pro Fac Was Fac Ext Cet Arc Hub Fac Was Fac Upp Upp War Traps Triggered 5 | . 1 . . . . . . . . . . 2 . . . . . . 1 . 1 . . . Indirectly . | . . . . . . . . . . . . . . . . . . . . . . . . . Trap Hack Attempts . | . . . . . . . . . . . . . . . . . . . . . . . . . Triggered . | . . . . . . . . . . . . . . . . . . . . . . . . . Disarmed 6 | . . . . . . 6 . . . . . . . . . . . . . . . . . . Reprogrammed . | . . . . . . . . . . . . . . . . . . . . . . . . . Reused 2 | . . . . . . . . . . . . . . . . . . . 1 1 . . . . Traps Extracted . | . . . . . . . . . . . . . . . . . . . . . . . . . Installed 3 | . . . . . . . . . . . . . . . . . . . 2 1 . . . . Triggered 20 | . . . . . . . . . 2 . . . . . . . . . 1 . . 1 . 16 Machines | -11 -10 -10 -9 -9 -8 -7 -6 -6 -6 -6 -5 -5 -5 -5 -5 -5 -5 -5 -4 -4 -4 -4 -4 -4 ---------- Run | Scr Mat Min Mat Min Mat Fac Fac Low Low Zio Pro Fac Was Fac Ext Cet Arc Hub Fac Was Fac Upp Upp War Machines Disabled 18 | . . . 1 1 2 . 1 . 1 . . 4 . . 3 2 2 . . . . . . 1 Max in Single Turn 1 | . . . 1 1 1 . 1 . 1 . . 1 . . 1 1 1 . . . . . . 1 Garrison Access 2 | . . . . . . . . . . . . 2 . . . . . . . . . . . . Machines Sabotaged . | . . . . . . . . . . . . . . . . . . . . . . . . . Garrisons Compromised . | . . . . . . . . . . . . . . . . . . . . . . . . . Overloaded Fab Kills . | . . . . . . . . . . . . . . . . . . . . . . . . . Fab Network Shutdowns . | . . . . . . . . . . . . . . . . . . . . . . . . . Hacking | -11 -10 -10 -9 -9 -8 -7 -6 -6 -6 -6 -5 -5 -5 -5 -5 -5 -5 -5 -4 -4 -4 -4 -4 -4 --------- Run | Scr Mat Min Mat Min Mat Fac Fac Low Low Zio Pro Fac Was Fac Ext Cet Arc Hub Fac Was Fac Upp Upp War Machines Accessed 37 | . 1 . 2 . 4 10 5 2 1 . . 5 . . . . . . . . . . . 7 Terminals 11 | . 1 . 1 . 3 4 1 1 . . . . . . . . . . . . . . . . Fabricators 3 | . . . . . . 1 1 . . . . 1 . . . . . . . . . . . . Repair Stations 3 | . . . . . . 1 2 . . . . . . . . . . . . . . . . . Recycling Units 4 | . . . 1 . . 2 . . . . . 1 . . . . . . . . . . . . Scanalyzers 3 | . . . . . 1 1 . . . . . 1 . . . . . . . . . . . . Garrison Access 4 | . . . . . . 1 1 . . . . 2 . . . . . . . . . . . . Total Hacks 98 | . 2 . 6 . 19 33 11 2 1 . . 10 . . . . . . . . . . . 14 Successful 62 | . 1 . 1 . 13 21 4 2 1 . . 5 . . . . . . . . . . . 14 Failed 35 | . . . 5 . 6 12 7 . . . . 5 . . . . . . . . . . . . Catastrophic 4 | . . . . . 1 2 1 . . . . . . . . . . . . . . . . . Database Lockouts 1 | . 1 . . . . . . . . . . . . . . . . . . . . . . . Manual 101 | . 3 . 3 . 7 8 2 . . 5 . 13 . 8 27 14 . . 3 . 8 . . . Terminals 33 | . 2 . 3 . 10 15 2 1 . . . . . . . . . . . . . . . . Fabricators 8 | . . . . . . 3 3 . . . . 2 . . . . . . . . . . . . Repair Stations 7 | . . . . . . 2 5 . . . . . . . . . . . . . . . . . Recycling Units 8 | . . . 3 . . 2 . . . . . 3 . . . . . . . . . . . . Scanalyzers 20 | . . . . . 9 8 . . . . . 3 . . . . . . . . . . . . Garrison Access 6 | . . . . . . 3 1 . . . . 2 . . . . . . . . . . . . Terminal Hacks 26 | . 1 . . . 1 7 . 2 1 . . . . . . . . . . . . . . 14 Record 14 | . . . . . . . . 1 . . . . . . . . . . . . . . . 13 Part Schematic 1 | . 1 . . . . . . . . . . . . . . . . . . . . . . . Open Door 3 | . . . . . . . . 1 1 . . . . . . . . . . . . . . 1 Terminal Index 1 | . . . . . . 1 . . . . . . . . . . . . . . . . . . Alert Level 1 | . . . . . . 1 . . . . . . . . . . . . . . . . . . Locate Traps 2 | . . . . . 1 1 . . . . . . . . . . . . . . . . . . Disarm Traps 1 | . . . . . . 1 . . . . . . . . . . . . . . . . . . Zone Layout 3 | . . . . . . 3 . . . . . . . . . . . . . . . . . . Fabricator Hacks 5 | . . . . . . 1 2 . . . . 2 . . . . . . . . . . . . Load Schematic 3 | . . . . . . 1 1 . . . . 1 . . . . . . . . . . . . Build 2 | . . . . . . . 1 . . . . 1 . . . . . . . . . . . . Repair Station Hacks 3 | . . . . . . 2 1 . . . . . . . . . . . . . . . . . Scan Component 2 | . . . . . . 1 1 . . . . . . . . . . . . . . . . . Repair 1 | . . . . . . 1 . . . . . . . . . . . . . . . . . . Recycling Unit Hacks 2 | . . . 1 . . 1 . . . . . . . . . . . . . . . . . . Retrieve Components 2 | . . . 1 . . 1 . . . . . . . . . . . . . . . . . . Scanalyzer 18 | . . . . . 9 8 . . . . . 1 . . . . . . . . . . . . Insert Component 9 | . . . . . 4 4 . . . . . 1 . . . . . . . . . . . . Analyze 9 | . . . . . 5 4 . . . . . . . . . . . . . . . . . . Garrison Access Hacks 2 | . . . . . . . . . . . . 2 . . . . . . . . . . . . Seal Access 2 | . . . . . . . . . . . . 2 . . . . . . . . . . . . Unauthorized Hacks 6 | . . . . . 3 2 1 . . . . . . . . . . . . . . . . . Terminals 6 | . . . . . 3 2 1 . . . . . . . . . . . . . . . . . Assimilate 1 | . . . . . . . 1 . . . . . . . . . . . . . . . . . Botnet 5 | . . . . . 3 2 . . . . . . . . . . . . . . . . . . Fabricators . | . . . . . . . . . . . . . . . . . . . . . . . . . Repair Stations . | . . . . . . . . . . . . . . . . . . . . . . . . . Recycling Units . | . . . . . . . . . . . . . . . . . . . . . . . . . Scanalyzers . | . . . . . . . . . . . . . . . . . . . . . . . . . Garrison Access . | . . . . . . . . . . . . . . . . . . . . . . . . . Data Cores Recovered 3 | . . . . . 1 1 . . . . . . . . 1 . . . . . . . . . Used 1 | . . . . . . 1 . . . . . . . . . . . . . . . . . . Hacking Detections 21 | . 1 . 1 . 4 8 5 . . . . 2 . . . . . . . . . . . . Full Trace Events 4 | . . . . . 2 2 . . . . . . . . . . . . . . . . . . Feedback Events 1 | . . . . . . 1 . . . . . . . . . . . . . . . . . . Corruption 1 | . . . . . . 1 . . . . . . . . . . . . . . . . . . Feedback Blocked . | . . . . . . . . . . . . . . . . . . . . . . . . . Robot Schematics Acquired . | . . . . . . . . . . . . . . . . . . . . . . . . . Robots Built . | . . . . . . . . . . . . . . . . . . . . . . . . . Matter . | . . . . . . . . . . . . . . . . . . . . . . . . . Time . | . . . . . . . . . . . . . . . . . . . . . . . . . Total Robot Build Rating . | . . . . . . . . . . . . . . . . . . . . . . . . . Part Schematics Acquired 41 | . 1 . . . 4 4 . . . . . . . 10 22 . . . . . . . . . Parts Built 3 | . . . . . . . 2 . . . . 1 . . . . . . . . . . . . Matter 292 | . . . . . . . 146 . . . . 146 . . . . . . . . . . . . Time 109 | . . . . . . . 36 . . . . 73 . . . . . . . . . . . . Total Part Build Rating 9 | . . . . . . . 6 . . . . 3 . . . . . . . . . . . . Parts Repaired 1 | . . . . . . 1 . . . . . . . . . . . . . . . . . . Time 26 | . . . . . . 26 . . . . . . . . . . . . . . . . . . Parts Recycled . | . . . . . . . . . . . . . . . . . . . . . . . . . Recycled Matter . | . . . . . . . . . . . . . . . . . . . . . . . . . Retrieved Matter . | . . . . . . . . . . . . . . . . . . . . . . . . . Retrieved Components 3 | . . . 2 . . 1 . . . . . . . . . . . . . . . . . . Parts Scanalyzed 9 | . . . . . 4 4 . . . . . 1 . . . . . . . . . . . . Part Schematics Acquired 8 | . . . . . 4 4 . . . . . . . . . . . . . . . . . . Parts Damaged . | . . . . . . . . . . . . . . . . . . . . . . . . . Bothacking | -11 -10 -10 -9 -9 -8 -7 -6 -6 -6 -6 -5 -5 -5 -5 -5 -5 -5 -5 -4 -4 -4 -4 -4 -4 ------------ Run | Scr Mat Min Mat Min Mat Fac Fac Low Low Zio Pro Fac Was Fac Ext Cet Arc Hub Fac Was Fac Upp Upp War Used RIF Installer . | . . . . . . . . . . . . . . . . . . . . . . . . . Robots Hacked . | . . . . . . . . . . . . . . . . . . . . . . . . . Non-combat . | . . . . . . . . . . . . . . . . . . . . . . . . . Combat . | . . . . . . . . . . . . . . . . . . . . . . . . . Robot Hacks Applied . | . . . . . . . . . . . . . . . . . . . . . . . . . Relay Couplers Released . | . . . . . . . . . . . . . . . . . . . . . . . . . Robots Rewired 17 | . . . . 1 . . 1 . 4 . 2 . . . 7 . . . . . . . 2 . Allies Hacked 1 | . . . . . . . . . . . . . . . . . . . . . . . 1 . Hacks Repelled 2 | . . . . . . . . . . . . . . . . . . . . . . . 2 . Allies | -11 -10 -10 -9 -9 -8 -7 -6 -6 -6 -6 -5 -5 -5 -5 -5 -5 -5 -5 -4 -4 -4 -4 -4 -4 -------- Run | Scr Mat Min Mat Min Mat Fac Fac Low Low Zio Pro Fac Was Fac Ext Cet Arc Hub Fac Was Fac Upp Upp War Total Allies 53 | . . . . 1 . . 2 . 4 4 2 . . . 10 4 . . 1 20 3 . 2 . Largest Group 22 | . . . . 1 1 . 2 2 4 4 4 2 . . 6 6 2 . 1 20 22 22 18 12 Highest-Rated Group 1003 | . . . . 16 16 . 58 58 80 149 149 78 . . 380 346 175 . 35 818 1003 986 807 520 Highest-Rated Ally 163 | . . . . 16 16 . 32 32 20 39 49 49 . . 163 163 149 . 35 46 70 70 70 59 Zionite Dispatches 6 | . . . . . . . . . . . . . . . 2 2 . . 1 . 1 . . . Heavy 1 | . . . . . . . . . . . . . . . 1 . . . . . . . . . Recon 1 | . . . . . . . . . . . . . . . . 1 . . . . . . . . Fire 1 | . . . . . . . . . . . . . . . . 1 . . . . . . . . Hacker 1 | . . . . . . . . . . . . . . . . . . . . . 1 . . . Hero 1 | . . . . . . . . . . . . . . . 1 . . . . . . . . . Trap Resupply 1 | . . . . . . . . . . . . . . . . . . . 1 . . . . . Total Orders 11 | . . . . . . . 6 1 . . . 1 . . . 3 . . . . . . . . STAY 4 | . . . . . . . 3 1 . . . . . . . . . . . . . . . . FOLLOW 3 | . . . . . . . 3 . . . . . . . . . . . . . . . . . EXPLORE 2 | . . . . . . . . . . . . . . . . 2 . . . . . . . . RETURN 2 | . . . . . . . . . . . . 1 . . . 1 . . . . . . . . Ally Attacks 366 | . . . . . 9 . . 1 10 . 49 8 . . 63 43 13 . . 24 6 54 86 . Total Damage 11825 | . . . . . 151 . . 14 165 . 1271 129 . . 2608 1876 414 . . 642 209 1718 2628 . Kills 84 | . . . . . 2 . . . . . 13 2 . . 20 16 3 . . 2 1 8 17 . Allies Corrupted 8 | . . . . . . . . . . . 1 . . . . . . . . . . . 3 4 Allies Melted . | . . . . . . . . . . . . . . . . . . . . . . . . . Intel | -11 -10 -10 -9 -9 -8 -7 -6 -6 -6 -6 -5 -5 -5 -5 -5 -5 -5 -5 -4 -4 -4 -4 -4 -4 ------- Run | Scr Mat Min Mat Min Mat Fac Fac Low Low Zio Pro Fac Was Fac Ext Cet Arc Hub Fac Was Fac Upp Upp War Robot Analysis Total . | . . . . . . . . . . . . . . . . . . . . . . . . . Derelict Logs Recovered 10 | . . 1 . 1 . . . 2 1 2 1 . . . . . . . . . . 1 1 . Drone Launches 3 | . . . . . . . . . . . . 1 . . . 2 . . . . . . . . Drone Recoveries 3 | . . . . . . . . . . . . 1 . . . 2 . . . . . . . . Zionite Intel Received 14 | . . . . . . . . . . . . 3 . 2 6 2 . . . . 1 . . . Main Access 1 | . . . . . . . . . . . . 1 . . . . . . . . . . . . Branch Access 1 | . . . . . . . . . . . . . . . . . . . . . 1 . . . Emergency Access 1 | . . . . . . . . . . . . . . . 1 . . . . . . . . . Guard Positions 1 | . . . . . . . . . . . . . . . 1 . . . . . . . . . Component Stockpiles 2 | . . . . . . . . . . . . 1 . . . 1 . . . . . . . . Component Schematics 1 | . . . . . . . . . . . . . . . 1 . . . . . . . . . Prototype Schematics 2 | . . . . . . . . . . . . . . 1 1 . . . . . . . . . Unaware Analyses 1 | . . . . . . . . . . . . . . 1 . . . . . . . . . . Trap Installations 2 | . . . . . . . . . . . . . . . 1 1 . . . . . . . . Depthwide Sectors/0 1 | . . . . . . . . . . . . 1 . . . . . . . . . . . . Depthwide Sectors/-1 1 | . . . . . . . . . . . . . . . 1 . . . . . . . . . Exploration | -11 -10 -10 -9 -9 -8 -7 -6 -6 -6 -6 -5 -5 -5 -5 -5 -5 -5 -5 -4 -4 -4 -4 -4 -4 ------------- Run | Scr Mat Min Mat Min Mat Fac Fac Low Low Zio Pro Fac Was Fac Ext Cet Arc Hub Fac Was Fac Upp Upp War Turns Passed 14884 | 65 303 225 117 804 939 451 387 644 945 2810 888 850 77 205 855 591 124 15 114 604 285 569 796 1221 Spaces Moved 10580 | 59 194 158 104 591 492 663 587 603 458 1518 449 1129 99 375 656 379 84 10 102 374 158 266 384 688 Core 537 | 4 . . . . . . . 406 . . . . . . 15 . . . 39 47 . . . 26 Treads 3700 | . . . . . . . . . 141 1328 264 118 . . 52 . . . . 327 158 266 384 662 Legs 1911 | . . . . 85 280 . . 29 317 190 185 . . . 289 379 84 10 63 . . . . . Wheels 400 | 55 187 158 . . . . . . . . . . . . . . . . . . . . . . Hover . | . . . . . . . . . . . . . . . . . . . . . . . . . Flight 4032 | . 7 . 104 506 212 663 587 168 . . . 1011 99 375 300 . . . . . . . . . Fastest Speed 28 | 50 85 90 34 34 34 31 28 28 150 160 120 34 34 34 37 118 117 117 50 50 160 160 160 50 Average Speed 101 | 85 91 90 35 47 84 31 28 82 163 162 157 49 34 34 90 118 117 117 90 138 160 160 160 155 Slowest Speed 200 | 90 117 90 114 120 150 31 31 150 180 180 185 186 34 37 200 118 118 117 117 165 160 160 160 160 Overloaded Moves . | . . . . . . . . . . . . . . . . . . . . . . . . . Propulsion Burnouts . | . . . . . . . . . . . . . . . . . . . . . . . . . Robots Hopped 32 | . . . . . . . 2 . . . . 18 6 2 3 . . . . . 1 . . . Cave-ins Triggered . | . . . . . . . . . . . . . . . . . . . . . . . . . Exploration Rate (%) 45 | 4 32 21 13 97 37 18 18 75 51 87 58 24 71 12 74 78 93 4 5 95 5 34 64 79 Regions Visited 24 Branch Regions 13 Pre-discovered Areas 17 | . . . . . . . . . . 1 . 9 . . 5 . . . . . . . 1 1 Known Exits Taken 6 | . . . 1 1 . . . . . . . . . 1 1 . . 1 . . 1 . . . Unknown Exits Taken 14 | 1 1 1 . . 1 1 1 1 1 1 1 . . . . 1 1 . . . . 1 1 . Scrap Searched 15 | . . 2 . 1 . . . 1 1 4 2 . . . . . . . . . . 2 2 . Spaces Dug 3 | . . . . . . . . 1 . 1 . . . 1 . . . . . . . . . . Terrain Destroyed 71 | . . . . . . . 4 3 2 1 4 41 . 2 1 1 3 . . . . . 3 6 Melee 3 | . . . . . . . . 1 . 1 . . . 1 . . . . . . . . . . Projectile 24 | . . . . . . . . 2 2 . 4 1 . 1 1 1 3 . . . . . 3 6 AOE 44 | . . . . . . . 4 . . . . 40 . . . . . . . . . . . . Terrain Rammed . | . . . . . . . . . . . . . . . . . . . . . . . . . Walls Destroyed . | . . . . . . . . . . . . . . . . . . . . . . . . . Machines Disabled . | . . . . . . . . . . . . . . . . . . . . . . . . . Actions | -11 -10 -10 -9 -9 -8 -7 -6 -6 -6 -6 -5 -5 -5 -5 -5 -5 -5 -5 -4 -4 -4 -4 -4 -4 --------- Run | Scr Mat Min Mat Min Mat Fac Fac Low Low Zio Pro Fac Was Fac Ext Cet Arc Hub Fac Was Fac Upp Upp War Total 13909 | 70 279 240 172 981 950 894 784 686 597 1847 574 1341 135 417 854 483 96 12 118 451 189 398 552 789 Wait 2152 | . 9 79 34 276 364 188 170 28 38 290 29 116 43 10 37 55 2 . . 35 23 121 149 56 Move 10503 | 58 193 157 103 590 491 662 582 602 457 1517 448 1096 89 370 651 378 83 10 102 373 155 265 383 688 Hop 24 | . . . . . . . 2 . . . . 15 3 2 1 . . . . . 1 . . . Pick Up 99 | 6 13 2 4 7 8 9 2 5 3 2 4 15 . 1 3 1 . . 3 8 . . 1 2 Fast Attach 161 | 6 6 . 4 2 10 4 3 4 9 11 11 16 . 7 30 7 . . 2 17 5 2 2 3 Attach 57 | . 4 . 4 5 3 5 1 5 4 . 5 2 . 1 4 . 3 . 1 3 . . . 7 Detach 18 | . 1 . 1 . 1 2 . 1 1 . . . . . 3 3 . . . . . . . 5 Swap 107 | . 9 1 5 23 15 2 4 4 3 5 9 10 . 2 3 7 1 . . 1 . 2 . 1 Drop 185 | . 16 1 10 6 21 11 4 4 2 13 9 31 . 4 12 11 1 . 4 9 5 3 4 4 Fire 425 | . 23 . 7 68 37 11 12 32 56 . 46 40 . 13 16 17 6 1 1 4 . 5 7 23 Melee 42 | . . . . . . . . 1 . 9 2 . . 7 16 4 . . 3 . . . . . Ram 5 | . 5 . . . . . . . . . . . . . . . . . . . . . . . Kick 1 | . . . . . . . . . . . . . . . . . . 1 . . . . . . Crush . | . . . . . . . . . . . . . . . . . . . . . . . . . Escape Stasis . | . . . . . . . . . . . . . . . . . . . . . . . . . Rewire 127 | . . . . 4 . . 4 . 24 . 11 . . . 78 . . . . . . . 6 . Trap 3 | . . . . . . . . . . . . . . . . . . . 2 1 . . . . Miscellaneous . | . . . . . . . . . . . . . . . . . . . . . . . . . Route ------- -11/Scrapyard -10/Materials -10/Mines -9/Materials (discovered 6 exits: Mat x3 / *Min x2 / Sto) -9/Mines (discovered 2 exits: *Mat x2) -8/Materials -7/Factory -6/Factory -6/Lower Caves -6/Lower Caves (discovered 2 exits: *Fac / *Zio) -6/Zion -5/Proximity Caves -5/Factory (discovered 6 exits: Fac x4 / *Upp / Ext) -5/Waste -5/Factory -5/Extension (discovered 2 exits: *Fac / *Cet) -5/Cetus (discovered 3 exits: *Fac x2 / *Arc) -5/Archives (discovered 3 exits: *Fac / [*Hub x2]) -5/Hub_04(d) -4/Factory -4/Waste -4/Factory (discovered 2 exits: *Upp x2) -4/Upper Caves -4/Upper Caves -4/Warlord History --------- Turn | Location | Event 32 | -11/Scrapyard | Discovered new exit (range 15) 66 | -11/Scrapyard | Entered Materials 348 | -10/Materials | Discovered new exit (range 12) 350 | -10/Materials | Central database locked down 369 | -10/Materials | Entered Mines 385 | -10/Mines | Discovered new exit (range 6) 397 | -10/Mines | Met a Derelict bent on vengeance 401 | -10/Mines | Learned 8 Materials zone layouts 487 | -10/Mines | Joined a pair of Derelicts in attacking an 0b10 outpost 594 | -10/Mines | Entered Materials 594 | -9/Materials | Evolved 2 slots: Propulsion x1, Utility x1 595 | -9/Materials | Identified exit to Storage 595 | -9/Materials | Identified exit to Materials 595 | -9/Materials | Identified exit to Mines 698 | -9/Materials | Discovered exit to Mines (range 16) 711 | -9/Materials | Entered Mines 731 | -9/Mines | Discovered exit to Materials (range 8) 872 | -9/Mines | Lost 3 parts (1n2w) 919 | -9/Mines | Build established: Scavenger-Mutant 920 | -9/Mines | Learned Materials non-interactive machine intel 962 | -9/Mines | Received a Rocket Launcher from a helpful Derelict 996 | -9/Mines | Excavation squad dispatched 996 | -9/Mines | A large section of the Mines collapsed 1120 | -9/Mines | Lost 3 parts (1p1n1w) 1148 | -9/Mines | Discovered exit to Materials (range 6) 1283 | -9/Mines | A weapon hastily lodged in a ceiling crevice suddenly fell to the ground 1515 | -9/Mines | Entered Materials 1515 | -8/Materials | Accompanied by 1 ally 1515 | -8/Materials | Evolved 2 slots: Power x1, Utility x1 1516 | -8/Materials | Loaded intel: 39 non-interactive machine locations 2131 | -8/Materials | Discovered new exit (range 16) 2454 | -8/Materials | Entered Factory 2454 | -7/Factory | Evolved 2 slots: Power x1, Propulsion x1 2543 | -7/Factory | Repaired Propulsion Shielding 2861 | -7/Factory | Discovered new exit (range 15) 2905 | -7/Factory | Entered another Factory area 2905 | -6/Factory | Evolved 2 slots: Propulsion x1, Utility x1 2960 | -6/Factory | Build established: Scavenger-Sprinter 3085 | -6/Factory | Fabricated Cesium-ion Thruster (x2) 3143 | -6/Factory | Garrison activated, responded to threat 3256 | -6/Factory | Discovered new exit (range 15) 3292 | -6/Factory | Entered Lower Caves 3292 | -6/Lower Caves | Accompanied by 2 allies 3296 | -6/Lower Caves | Encountered a Warlord checkpoint 3447 | -6/Lower Caves | Lost 13 parts (3p6n1u3w) 3725 | -6/Lower Caves | Build established: Scavenger-Mutant 3757 | -6/Lower Caves | Learned location of 1 exit from Factory 3817 | -6/Lower Caves | Discovered new exit (range 13) 3936 | -6/Lower Caves | Entered another Lower Caves area 4028 | -6/Lower Caves | Discovered new exit (range 10) 4160 | -6/Lower Caves | Learned Factory garrison access intel 4277 | -6/Lower Caves | Attacked by a delusional Derelict stockpiling Unaware 4497 | -6/Lower Caves | Core integrity fell below 50% 4513 | -6/Lower Caves | Lost 3 parts (1p1n1w) 4722 | -6/Lower Caves | Discovered new exit (range 7) 4881 | -6/Lower Caves | Entered Zion 4935 | -6/Zion | Discovered new exit (range 15) 5078 | -6/Zion | System corruption cleaned by Quarantine Array 5206 | -6/Zion | Learned Factory non-interactive machine intel 5352 | -6/Zion | Learned Factory emergency access door positions 5669 | -6/Zion | Given the Hacking Drone Bay 5672 | -6/Zion | Found Prototype Device 5689 | -6/Zion | Identified Hacking Drone Bay 5848 | -6/Zion | Received a visual enhancement algorithm 6869 | -6/Zion | Found Prototype Processor 6869 | -6/Zion | Identified Exp. Targeting Computer 6873 | -6/Zion | Found Prototype Hackware 6873 | -6/Zion | Identified Exp. System Shield 6880 | -6/Zion | Found Prototype Processor 6880 | -6/Zion | Identified Exp. Core Analyzer 7058 | -6/Zion | Learned location of Armory (-3) 7330 | -6/Zion | Imprinted 7333 | -6/Zion | Declared Zion's savior 7691 | -6/Zion | Entered Proximity Caves 7691 | -5/Proximity Caves | Accompanied by 4 allies 7930 | -5/Proximity Caves | Lost 3 parts (2n1w) 7996 | -5/Proximity Caves | Attracted the attention of an 0b10 outpost 8122 | -5/Proximity Caves | Lost 4 parts (1p2n1w) 8189 | -5/Proximity Caves | Lost 7 parts (1p2n2u2w) 8514 | -5/Proximity Caves | Discovered new exit (range 10) 8579 | -5/Proximity Caves | Entered Factory 8579 | -5/Factory | Accompanied by 2 allies 8579 | -5/Factory | Evolved 2 slots: Utility x1, Weapon x1 8580 | -5/Factory | Identified exit to Upper Caves 8581 | -5/Factory | Identified exit to Extension 8583 | -5/Factory | Loaded intel: 194 non-interactive machine locations 8584 | -5/Factory | Loaded intel: 4 garrison access locations 9016 | -5/Factory | Retrieved Zion intel report: Main Access 9016 | -5/Factory | Identified exit to Factory 9090 | -5/Factory | Retrieved Zion intel report: Component Stockpiles 9159 | -5/Factory | Fabricated Adv. Sensor Array (x1) 9396 | -5/Factory | Retrieved Zion intel report: Depthwide Sectors/0 9429 | -5/Factory | Sucked down chute 9429 | -5/Factory | Entered Waste 9433 | -5/Waste | Spotted C-40 Crusher 9436 | -5/Waste | Spotted C-40 Crusher 9471 | -5/Waste | Spotted C-40 Crusher 9472 | -5/Waste | Spotted C-40 Crusher 9487 | -5/Waste | Spotted C-40 Crusher 9489 | -5/Waste | Crushed by Compactor (1 part destroyed) 9493 | -5/Waste | Spotted C-40 Crusher 9498 | -5/Waste | Crushed by Compactor (1 part destroyed, 1 dropped) 9500 | -5/Waste | Discovered new exit (range 16) 9506 | -5/Waste | Entered Factory 9529 | -5/Factory | Lost 3 parts (2u1w) 9619 | -5/Factory | Retrieved Zion intel report: Prototype Schematics 9701 | -5/Factory | Lost 3 parts (1n2w) 9708 | -5/Factory | Discovered exit to Extension (range 11) 9709 | -5/Factory | Retrieved Zion intel report: Unaware Analyses 9711 | -5/Factory | Entered Extension 9789 | -5/Extension | Spotted B-75 Beast 9849 | -5/Extension | Core integrity fell below 50% 9850 | -5/Extension | Spotted B-75 Beast 9909 | -5/Extension | Lost 16 parts (2p6n6u2w) 9962 | -5/Extension | Zion hero teleported in (P1-3CE) 9983 | -5/Extension | Retrieved Zion intel report: Emergency Access 10020 | -5/Extension | Retrieved Zion intel report: Trap Installations 10021 | -5/Extension | Zion Heavy squad teleported in 10044 | -5/Extension | Retrieved Zion intel report: Component Schematics 10079 | -5/Extension | Retrieved Zion intel report: Depthwide Sectors/-1 10094 | -5/Extension | Retrieved Zion intel report: Guard Positions 10193 | -5/Extension | Found Prototype Protection 10193 | -5/Extension | Identified Zio. Weapon Casing 10225 | -5/Extension | Allies destroyed B-75 Beast 10243 | -5/Extension | Retrieved Zion intel report: Prototype Schematics 10384 | -5/Extension | Discovered exit to Factory (range 16) 10384 | -5/Extension | Discovered new exit (range 16) 10419 | -5/Extension | Identified exit to Cetus 10555 | -5/Extension | Disrupted transfer network 10566 | -5/Extension | Entered Cetus 10566 | -5/Cetus | Accompanied by 3 allies (P1-3CE) 10583 | -5/Cetus | Spotted Cetus Guard 10583 | -5/Cetus | Spotted Cetus Guard 10584 | -5/Cetus | Spotted Cetus Guard 10589 | -5/Cetus | Destroyed Cetus Guard 10589 | -5/Cetus | Spotted Cetus Guard 10591 | -5/Cetus | Allies destroyed Cetus Guard 10593 | -5/Cetus | Allies destroyed Cetus Guard 10598 | -5/Cetus | Destroyed Cetus Guard 10668 | -5/Cetus | Zion Recon squad teleported in 10674 | -5/Cetus | Zion Fire squad teleported in 10698 | -5/Cetus | Discovered new exit (range 40) 10706 | -5/Cetus | Discovered exit to Factory (range 57) 10708 | -5/Cetus | Spotted Cetus Guard 10709 | -5/Cetus | Retrieved Zion intel report: Trap Installations 10756 | -5/Cetus | Retrieved Zion intel report: Component Stockpiles 10921 | -5/Cetus | Discovered exit to Factory (range 15) 11157 | -5/Cetus | Entered Archives 11157 | -5/Archives | Accompanied by 2 allies (P1-3CE) 11175 | -5/Archives | Met Zhirov 11181 | -5/Archives | Reinforcements dispatched to Archives 11182 | -5/Archives | Unable to access archive contents 11194 | -5/Archives | Discovered exit to Factory (range 14) 11221 | -5/Archives | Unable to access archive contents 11226 | -5/Archives | Reinforcements dispatched to Archives 11228 | -5/Archives | Zhirov warped through subspace 11238 | -5/Archives | Discovered new exit (range 16) 11246 | -5/Archives | Zhirov detonated Archives 11247 | -5/Archives | Core integrity fell below 20% 11255 | -5/Archives | Discovered new exit (range 16) 11277 | -5/Archives | Lost 7 parts (1p1n3u2w) 11281 | -5/Archives | Entered Hub_04(d) 11281 | -5/Hub_04(d) | Discovered exit to Factory (range 10) 11296 | -5/Hub_04(d) | Entered Factory 11296 | -4/Factory | Evolved 2 slots: Utility x1, Weapon x1 11308 | -4/Factory | Spotted B-86 Titan 11313 | -4/Factory | Zion Trap Resupply teleported in 11348 | -4/Factory | Lost 6 parts (1p3u2w) 11383 | -4/Factory | Spotted B-86 Titan 11410 | -4/Factory | Core integrity fell below 50% 11410 | -4/Factory | Manually triggered Chute Trap 11410 | -4/Factory | Sucked down chute 11410 | -4/Factory | Entered Waste 11411 | -4/Waste | Joined by Warlord forces that had cleared the area 11419 | -4/Waste | Lost 6 parts (1p3n2w) 11420 | -4/Waste | A Compactor rumbled back to life 11420 | -4/Waste | Spotted C-40 Crusher 11439 | -4/Waste | Found Prototype Device 11439 | -4/Waste | Identified Beam Splitter 11501 | -4/Waste | Found Adv. Force Booster 11930 | -4/Waste | A Compactor rumbled back to life 11930 | -4/Waste | Spotted C-40 Crusher 11931 | -4/Waste | Allies destroyed C-40 Crusher 11932 | -4/Waste | Discovered new exit (range 13) 12014 | -4/Waste | Entered Factory 12014 | -4/Factory | Accompanied by 19 allies 12049 | -4/Factory | Zion Hacker squad teleported in 12093 | -4/Factory | Build established: Scavenger-Tank 12109 | -4/Factory | Retrieved Zion intel report: Branch Access 12109 | -4/Factory | Identified exit to Upper Caves 12255 | -4/Factory | Found Unknown Device 12255 | -4/Factory | Identified Quantum Capacitor 12299 | -4/Factory | Entered Upper Caves 12299 | -4/Upper Caves | Accompanied by 22 allies 12534 | -4/Upper Caves | Learned Research emergency access door positions 12671 | -4/Upper Caves | Spotted B-86 Titan 12686 | -4/Upper Caves | Allies destroyed B-86 Titan 12739 | -4/Upper Caves | Discovered new exit (range 4) 12747 | -4/Upper Caves | Attracted the attention of an 0b10 checkpoint 12868 | -4/Upper Caves | Entered another Upper Caves area 12868 | -4/Upper Caves | Accompanied by 18 allies 12919 | -4/Upper Caves | Spotted B-86 Titan 12930 | -4/Upper Caves | Allies destroyed B-86 Titan 13217 | -4/Upper Caves | Attracted the attention of an 0b10 outpost 13463 | -4/Upper Caves | Learned location of Quarantine (-2) 13501 | -4/Upper Caves | Build established: Scavenger-Mutant 13585 | -4/Upper Caves | Discovered new exit (range 9) 13664 | -4/Upper Caves | Entered Warlord 13664 | -4/Warlord | Accompanied by 12 allies 13832 | -4/Warlord | System corruption cleaned by Quarantine Array 13962 | -4/Warlord | Learned location of Testing (-3) 13962 | -4/Warlord | Learned Armory stockpile data 13963 | -4/Warlord | Learned 4 Command zone layouts 13967 | -4/Warlord | Learned Factory garrison access intel 13967 | -4/Warlord | Learned Research terminal intel 13967 | -4/Warlord | Learned Research fabricator intel 14024 | -4/Warlord | Visited the Vortex Lab 14034 | -4/Warlord | Warlord's base attacked by MAIN.C 14048 | -4/Warlord | Found Prototype Energy Gun 14051 | -4/Warlord | Identified Vortex Shotgun 14054 | -4/Warlord | Found Vortex Shotgun 14074 | -4/Warlord | Build established: Scavenger-Tank 14334 | -4/Warlord | Rebuked by Warlord 14384 | -4/Warlord | Warlord forces counterattacked 14760 | -4/Warlord | Spotted Executioner 14775 | -4/Warlord | Spotted Executioner 14808 | -4/Warlord | Lost 3 parts (1p1n1w) 14817 | -4/Warlord | Destroyed Executioner 14834 | -4/Warlord | Destroyed Executioner 14869 | -4/Warlord | Released all parts (9) 14881 | -4/Warlord | Core integrity fell below 20% 14882 | -4/Warlord | Spotted Striker 14883 | -4/Warlord | Spotted Executioner 14885 | -4/Warlord | Destroyed by G-67 Veteran with Plasma Rifle Last Messages --------------- 14857_ G-67 Veteran destroyed. 14857_ Slug penetrates Wall. 14859_ Self-destruct Interrupter shorts Lgt. Antimatter Reactor self-destruct mechanism. 14860_ Antimatter Reactor destroyed. 14869_ Hvy. Treads destroyed. 14869_ Released KE Penetrator. 14869_ Released Railgun. 14869_ Released Imp. Remote Force Field. 14869_ Released Imp. Transmission Jammer. 14869_ Released Hvy. Treads. 14869_ Released Imp. Cooling System. 14869_ Released Adv. Targeting Computer. 14869_ Released Hvy. Beamcaster. 14869_ Released Adv. Cooling System. 14869_ Acquired 65 matter. 14872_ Acquired 96 matter. 14880_ Acquired 43 matter. 14881_ Acquired 6 matter. 14884_ G-73 Enforcer knocked back. Map ----- +----------------------------------------------------+ | ??????????????#########??????????????????????????? | | ??????????????#"""""""#??????????????????????????? | | ??#######?????#"""X"""#??????????????????????????? | | ??# #?????#"X X"#??????????????????????????? | | ??# #?????#"" ""#??????????????????????????? | | ### #?????#"" ""#??????????????????????????? | | #X##+####?????### ###??????????????????????????? | | ###########+###???????????????????????????? | | #???????????????????????????? | | #?????????????????????? ???# | | ### """"" """" #?????????????????????? ?? | | ### """"" """" ##??????????????????????? ### | | "## """ """" ! #????????????????????????? ^ | | "## !!##?????????????????????????# | | "## !!%#??????""??????????????????# | | ## % #?????#""#??##??????????????# | | ## =#?????#""### ##??????????????# | | ## # %#######"" # ##?????????????? | | "## #!! !!%!# "" ##########????? | | "## %[ %=!=%%%%! "" "" """""#????? | | "### !=! *!% %!%!d"" E !d """"""#?#### | | "## !!%=]==%[%g%%%%% g!%i!! ### # | | #?## =!%%!%=%%=%g!%%= g=Kb=dg + | | ???# g *=*!!!*=%%d%%%%=%gi%!g%% + | | ???# g = ]%!*=i%%%%%%=%g=%%!*%* #### | | ???## % ; !!=% /*b%=@=""= [[%[%!! """""#??## | | ????# = # # /%%=%!%[[%"" !=%%=/""""""#???# | | #???#^ ^ #### ! %*!#= "" #*=#########???# | | #??# ###+######; #######""#####?????????????## | | # #?# ## #?# ; #?????#""#????????????????## ^ | | ?# ## ## #?# " #?????#""#????????????????# | | ??# "[## #?### #??????""#???????????????## # | | ??##! ## #??#" #??????????????????????### " | | ?####[########### #??????????????????????# " # | | ?# =[!####### #" #??????????????????????# "== " | | ?# !!= = #????????????????????### *%%" | | ?# %[% % #????????????????????# %=="# | | ?# !* #????????????????????# %%=%" | | ?# ##""######"# #????????????????????# %= % | | #"" ##? # #??? #%#??????????????????#### % " | | # ##?#######"## #?????????????????## # ## | | # #?# # #?????????????????# #### | | + ##?# # #?????????????????# #??# | | # #??# # ##????????????????# ## #?# | | # #??# # #????????????????####?# #?? | | # #??# # #????????????????????? ##?? | | # #### !!! + #????????????????????#####??? | | # + & # #???????????????????????????? | | ### #### [[[ # #???????????????????????????? | | #?# #?# # #???????????????????????????? | +----------------------------------------------------+ Best States ------------- Heat Dissipation 101 Energy Generation 62 Energy Capacity 775 Matter Stores 300 Matter Capacity 300 Sight Range 16 Robot Scan Range 16 Terrain Scan Density 10 ECM Strength 2 Jamming Range 12 Additional Mass Support 9 EM Shielding 2 Armor Coverage 1200 Resistance: KI 30 Resistance: TH 75 Propulsion Shielding 33 Weapon Shielding 100 Weapon Cycling 20 Evasion (%) 73 Targeting Accuracy 24 Target Analysis 6 Core Analysis 8 Recoil Reduction 5 Overload Regulation 40 Defensive Hacking 16 Item Schematics ----------------- EM Pulse Gun | -10/Materials | Hacked Cesium-ion Thruster | -8/Materials | Scanalyzed Enh. Flamer | -8/Materials | Scanalyzed Gauss Rifle | -8/Materials | Scanalyzed Lgt. Deuterium Engine | -8/Materials | Scanalyzed Lightning Gun | -7/Factory | Scanalyzed Arc Projector | -7/Factory | Scanalyzed Adv. Sensor Array | -7/Factory | Scanalyzed Adv. Weight Redist. System | -7/Factory | Scanalyzed Imp. Airjet | -5/Factory | Z-intel Adv. Power Amplifier | -5/Factory | Z-intel Cld. Plasma Rifle | -5/Factory | Z-intel Imp. Matter Compressor | -5/Factory | Z-intel Tri-rail Accelerator | -5/Factory | Z-intel Cld. VTOL Module | -5/Factory | Z-intel F-cell Engine | -5/Factory | Z-intel Enh. Fission Core | -5/Factory | Z-intel Thunder Hammer | -5/Factory | Z-intel Exp. Heat Sink | -5/Factory | Z-intel Antigrav System | -5/Extension | Z-intel Neutron Cannon | -5/Extension | Z-intel Imp. Hacking Suite | -5/Extension | Z-intel Imp. Power Shielding | -5/Extension | Z-intel Recalibrator | -5/Extension | Z-intel Imp. Thermal Generator | -5/Extension | Z-intel Great Axe | -5/Extension | Z-intel Med. Reactive Plating | -5/Extension | Z-intel Adv. System Shield | -5/Extension | Z-intel Enh. Gauss Cannon | -5/Extension | Z-intel Imp. Kinecellerator | -5/Extension | Z-intel Imp. Core Analyzer | -5/Extension | Z-intel Shield Generator | -5/Extension | Z-intel Hvy. Phase Cannon | -5/Extension | Z-intel Exp. Signal Interpreter | -5/Extension | Z-intel Cld. Fission Core | -5/Extension | Z-intel Enh. Armored Leg | -5/Extension | Z-intel Exp. Terrain Scan Processor | -5/Extension | Z-intel Cld. Gravmag System | -5/Extension | Z-intel Imp. Energy Well | -5/Extension | Z-intel Lgt. Neutrino Core | -5/Extension | Z-intel Hvy. Proton Cannon | -5/Extension | Z-intel Robot Schematics ------------------ None Fabricated ------------ Cesium-ion Thruster | x2 | -6/Factory Adv. Sensor Array | x1 | -5/Factory Alien Tech Used ----------------- None Achievements -------------- Adventurer Cya! Freeware Generalissimo Heroic Deeds Quantum Hacking We Are Legion What Is This Thing? Wheee! Challenges ------------ None Game ------ Seed FluxBiomechanicalMultirail Manual? 0 Play Time 04:20:59 Cumulative 51.9 hours Start 2021.11.20 @ 18:56:33 End 2021.11.25 @ 22:10:31 Sessions 5 Manual Loads 0 Difficulty Rogue Special Mode None Game No. 11 Rogue 11 Adventurer 0 Explorer 0 Win Type - Total 2 Types 2/0/0/0/0/0/0/0/0 Lore% 22 Gallery% 36 Achievement% 35 Wizard Run 0 Options --------- ASCII 0 Keyboard 0 Movement Mouse Keybinds 0 Fullscreen 1 Font 18/Terminus Map View 76x50 Tactical HUD 1 Map Filters NONE Filters NONE Steam 1 RUN: 8e953501-1e9f-4303-85c9-e12805ca7b9b